bitfinex/quotes_ETHUSD_20241030
["timestamp","ask_amount","ask_price","bid_price","bid_amount"]
[1730300764687,3.68499,2713.8,2713.4,0.85758396]
[1730300764883,3.68499,2713.8,2713.4,0.08298528]
[1730300765089,7.36998,2713.8,2713.4,0.08298528]
[1730300765416,3.685,2713.7,2713.4,0.08298528]
[1730300765627,3.68468,2714.0,2713.4,0.08298528]
[1730300765803,3.68489,2713.8,2713.4,0.08298528]
[1730300766130,3.68509,2713.7,2713.5,0.43156488]
[1730300766326,3.685,2713.7,2713.4,0.08298528]
[1730300766537,3.68498,2713.8,2713.3,0.4735]
[1730300766689,3.68515,2713.6,2713.3,0.4735]
[1730300766885,3.68515,2713.6,2713.3,1.257998]
[1730300767092,3.68515,2713.6,2713.3,0.4735]
[1730300767434,3.68561,2713.3,2712.9,0.55]
[1730300767729,3.6859,2713.1,2712.8,0.4735]
[1730300768226,3.68574,2713.2,2712.8,0.4735]
[1730300768433,3.68606,2713.0,2712.8,0.4735]
[1730300768619,3.68606,2713.0,2712.5,3.68656]
[1730300768991,3.68615,2712.9,2712.4,4.16026]
[1730300769231,3.68615,2712.9,2712.5,1.1360333]
[1730300769698,3.68606,2713.0,2712.6,0.55]
[1730300769912,3.68606,2713.0,2712.6,4.23649]
[1730300770107,7.37214,2713.0,2712.6,0.55]
[1730300770337,7.37214,2713.0,2712.6,1.85461363]
[1730300770338,3.6861,2712.9,2712.6,1.85461363]
[1730300770496,3.68606,2713.0,2712.6,0.55]
[1730300770934,7.37211,2713.0,2712.6,0.55]
[1730300771120,3.68605,2713.0,2712.6,0.55]
[1730300771705,3.68603,2713.0,2712.6,0.55]
[1730300771926,3.68603,2713.0,2712.7,0.08317598]
[1730300772262,7.37207,2713.0,2712.7,0.08317598]
[1730300772412,3.68603,2713.0,2712.7,0.08317598]
[1730300772832,4.50477,2713.2,2712.7,0.08317598]
[1730300772833,3.6862,2712.9,2712.7,0.08317598]
[1730300773034,3.68622,2712.8,2712.7,0.08317598]
[1730300773252,3.68622,2712.8,2712.1,7.67386298]
[1730300773455,3.68643,2712.7,2712.3,0.55]
[1730300774161,3.6865,2712.6,2712.3,0.55]
[1730300774449,3.68595,2713.0,2712.1,3.98676298]
[1730300774749,7.37316,2712.6,2712.1,7.67387298]
[1730300774950,3.68674,2712.5,2712.1,3.98676298]
[1730300775312,3.68679,2712.4,2711.9,3.68738]
[1730300775836,3.68702,2712.3,2711.8,4.16107]
[1730300776038,3.68708,2712.2,2711.8,0.4735]
[1730300776353,4.51091,2712.7,2711.4,0.0553331]
[1730300776354,3.68739,2712.0,2711.4,0.0553331]
[1730300776556,3.68739,2712.0,2711.3,4.16166]
[1730300776557,3.68754,2711.9,2711.3,4.16166]
[1730300776854,3.68775,2711.7,2711.3,0.4735]
[1730300777062,3.68792,2711.6,2711.3,0.4735]
[1730300777226,3.68806,2711.5,2711.1,3.51326298]
[1730300777424,3.68825,2711.4,2711.2,0.7675403]
[1730300777631,3.68832,2711.3,2710.9,0.57700376]
[1730300777820,3.68844,2711.2,2710.8,3.51326298]
[1730300778459,3.68832,2711.3,2710.8,3.68892]
[1730300778762,3.68832,2711.3,2710.8,7.37778]
[1730300778943,3.68822,2711.4,2710.9,4.23879]
[1730300779332,3.68822,2711.4,2710.9,4.31255843]
[1730300779554,3.68822,2711.4,2710.9,4.23879]
[1730300779784,3.68822,2711.4,2710.9,7.92749]
[1730300779985,3.68822,2711.4,2711.0,0.792749]
[1730300780199,7.40120992,2712.3,2711.0,0.792749]
[1730300780200,4.43917,2712.0,2711.5,3.68793]
[1730300780348,3.68737,2712.0,2711.5,3.68793]
[1730300780548,7.29,2712.8,2711.6,3.7616045]
[1730300780549,4.51801,2712.3,2711.6,3.7616045]
[1730300780778,3.68713,2712.2,2711.7,0.90466045]
[1730300781079,7.37426,2712.2,2711.7,4.59236045]
[1730300781283,3.68719,2712.1,2711.7,0.4735]
[1730300781484,3.68743,2712.0,2711.6,0.55]
[1730300782259,0.8311,2712.3,2711.3,0.4735]
[1730300782260,3.6876,2711.8,2711.3,0.4735]
[1730300782653,7.37532,2711.8,2711.3,0.4735]
[1730300782879,0.8311,2712.3,2711.3,1.69765499]
[1730300783222,3.68787,2711.6,2711.1,3.68844]
[1730300783386,3.68787,2711.6,2711.2,4.2384]
[1730300783562,3.68787,2711.6,2711.2,0.55]
[1730300783763,3.68787,2711.6,2711.1,4.16194]
[1730300783962,3.68787,2711.6,2711.1,7.8504]
[1730300784166,4.51907,2711.8,2711.2,0.8643149]
[1730300784486,3.68739,2712.0,2711.3,3.68825]
[1730300784642,7.37478,2712.0,2711.3,3.68818]
[1730300784848,3.68739,2712.0,2711.5,3.68799]
[1730300785282,3.68739,2712.0,2711.5,8.113537]
[1730300785488,3.68739,2712.0,2711.6,3.68783]
[1730300785663,3.68719,2712.1,2711.7,0.4735]
[1730300785861,4.50792,2712.2,2711.7,4.1612]
[1730300786060,4.50792,2712.2,2711.7,4.16114]
[1730300786387,3.68727,2712.1,2711.7,0.4735]
[1730300786790,4.50792,2712.2,2711.8,0.08396867]
[1730300787014,8.19506,2712.2,2711.8,0.08396867]
[1730300787163,3.68719,2712.1,2711.8,0.08396867]
[1730300787364,3.68731,2712.0,2711.8,0.08396867]
[1730300787793,3.68718,2712.1,2711.8,0.08396867]
[1730300788787,3.68738,2712.0,2711.8,0.08396867]
[1730300788963,3.68732,2712.0,2711.8,0.08396867]
[1730300789167,3.68732,2712.0,2711.5,3.68792]
[1730300789168,3.68732,2712.0,2711.6,0.55]
[1730300789376,3.68732,2712.0,2711.9,0.08395835]
[1730300789594,3.68718,2712.1,2711.6,0.55]
[1730300789788,3.68731,2712.0,2711.9,0.08395835]
[1730300789965,3.68718,2712.1,2711.6,0.55]
[1730300790172,3.68718,2712.1,2711.6,4.23784]
[1730300790486,3.68718,2712.1,2711.7,0.08405059]
[1730300790791,3.68739,2712.0,2711.7,0.08405059]
[1730300791178,3.68718,2712.1,2711.7,0.08405059]
[1730300791508,7.37444,2712.1,2711.7,0.08405059]
[1730300792012,3.68718,2712.1,2711.7,0.08405059]
[1730300792313,3.68692,2712.3,2711.8,4.21154026]
[1730300792463,3.68706,2712.2,2711.8,0.52403026]
[1730300792667,3.68726,2712.1,2711.9,0.08395835]
[1730300793088,3.68706,2712.2,2711.9,0.08395835]
[1730300793298,3.68719,2712.1,2711.6,1.468422]
[1730300793600,3.68719,2712.1,2712.0,0.08391224]
[1730300794098,3.68719,2712.1,2711.6,5.22999131]
[1730300794410,0.81,2712.4,2712.0,0.08391224]
[1730300794583,3.68652,2712.6,2712.0,0.55]
[1730300794779,3.68672,2712.5,2712.1,0.08386612]
[1730300795508,3.68683,2712.4,2712.1,0.08386612]
[1730300795724,3.6868,2712.4,2712.1,0.08386612]
[1730300796213,8.17826,2712.7,2712.1,3.77103612]
[1730300796379,3.6865,2712.6,2712.1,4.66705604]
[1730300796579,3.68669,2712.5,2712.1,0.97988604]
[1730300797274,3.68681,2712.4,2712.1,0.97988604]
[1730300797470,3.68681,2712.4,2712.1,0.08386612]
[1730300798180,3.68665,2712.5,2712.1,0.08386612]
[1730300798597,3.68665,2712.5,2712.1,3.77103612]
[1730300798794,8.17827,2712.7,2712.2,3.68703]
[1730300799002,3.68622,2712.8,2712.4,4.7102]
[1730300799195,3.68622,2712.8,2712.5,0.08358558]
[1730300799385,3.68609,2712.9,2712.5,0.08358558]
[1730300799597,3.68609,2712.9,2712.5,3.77019558]
[1730300800118,3.68609,2712.9,2712.5,0.08358558]
[1730300800322,3.68609,2712.9,2712.5,3.77020558]
[1730300800522,3.68596,2713.0,2712.5,3.77012558]
[1730300801225,3.68596,2713.0,2712.6,3.68644]
[1730300801431,3.68613,2712.9,2712.7,0.08344439]
[1730300801595,3.68613,2712.9,2712.5,3.68654]
[1730300801790,3.68613,2712.9,2712.6,0.08347541]
[1730300802898,3.68623,2712.8,2712.4,4.71019]
[1730300803240,3.68616,2712.9,2712.5,0.07372444]
[1730300803381,3.68616,2712.9,2712.6,0.08347541]
[1730300804253,3.68647,2712.7,2712.4,1.0235]
[1730300804553,3.68624,2712.8,2712.4,1.0235]
[1730300804720,3.68624,2712.8,2712.4,4.71026]
[1730300804886,3.68624,2712.8,2712.4,5.90736202]
[1730300805313,3.68636,2712.7,2712.4,2.22060202]
[1730300805503,3.68624,2712.8,2712.4,2.22060202]
[1730300805703,3.68624,2712.8,2712.4,5.90736202]
[1730300806022,3.68624,2712.8,2712.4,2.22060202]
[1730300806187,7.37259,2712.8,2712.4,2.22060202]
[1730300806387,3.0,2713.2,2712.4,1.0235]
[1730300806617,3.0,2713.2,2712.2,3.50009216]
[1730300806618,3.68665,2712.5,2712.2,0.55]
[1730300806829,3.68651,2712.6,2712.2,4.23704]
[1730300807186,3.68637,2712.7,2712.2,4.23694]
[1730300807385,3.68637,2712.7,2712.2,5.076706]
[1730300807581,3.6863,2712.8,2712.2,5.076706]
[1730300807891,3.68602,2713.0,2712.5,3.68656]
[1730300808090,3.68602,2713.0,2712.5,10.87318216]
[1730300808320,3.68602,2713.0,2712.6,1.14204087]
[1730300808822,3.68593,2713.1,2712.8,0.4735]
[1730300809399,3.68601,2713.0,2712.8,0.4735]
[1730300809809,3.68583,2713.1,2712.8,0.4735]
[1730300810209,3.6856,2713.3,2712.8,4.15966]
[1730300810393,3.68575,2713.2,2712.8,4.15966]
[1730300810594,3.68575,2713.2,2712.8,0.4735]
[1730300810860,3.6856,2713.3,2712.8,0.4735]
[1730300811043,0.7702,2713.4,2712.8,4.15971]
[1730300811249,3.0,2713.6,2713.2,0.4735]
[1730300811250,3.6852,2713.6,2713.2,0.4735]
[1730300811391,3.6857,2713.2,2712.9,0.4735]
[1730300811598,3.68569,2713.2,2712.9,0.4735]
[1730300811820,3.68582,2713.1,2712.6,0.4735]
[1730300812012,3.68569,2713.2,2712.7,4.23629]
[1730300812343,3.68549,2713.4,2712.7,4.23629]
[1730300812344,3.68608,2713.0,2712.7,0.55]
[1730300812629,3.68597,2713.0,2712.7,0.55]
[1730300813045,3.6859,2713.1,2712.7,0.55]
[1730300813201,3.6859,2713.1,2712.7,4.23636]
[1730300813402,3.6859,2713.1,2712.7,0.55]
[1730300813608,3.68569,2713.2,2712.8,3.68622]
[1730300814311,3.68569,2713.2,2712.7,1.40791822]
[1730300814510,7.37147,2713.2,2712.7,5.09423822]
[1730300814729,3.68565,2713.3,2712.7,1.40791822]
[1730300814933,3.68588,2713.1,2712.7,1.40791822]
[1730300815130,3.68588,2713.1,2712.7,0.55]
[1730300815850,1.215198,2713.5,2712.7,4.23625]
[1730300815851,3.68568,2713.2,2712.7,4.23625]
[1730300816047,3.68585,2713.1,2712.7,0.55]
[1730300816641,3.68598,2713.0,2712.8,0.08330029]
[1730300817005,3.68609,2712.9,2712.8,0.08330029]
[1730300817237,3.68609,2712.9,2712.0,0.3691]
[1730300817238,3.68634,2712.8,2712.4,0.4735]
[1730300817551,3.68634,2712.8,2712.5,0.08343857]
[1730300817552,3.6866,2712.6,2712.5,0.08343857]
[1730300817859,3.68644,2712.7,2712.2,4.16053]
[1730300818059,3.6865,2712.6,2712.5,0.08071142]
[1730300818368,3.68639,2712.7,2712.3,3.96209293]
[1730300818670,3.68639,2712.7,2712.4,0.08075752]
[1730300818830,3.68663,2712.6,2712.4,0.08075752]
[1730300819035,3.68663,2712.6,2712.2,0.4735]
[1730300819233,3.68663,2712.6,2712.3,0.08080362]
[1730300819438,3.68639,2712.7,2712.2,1.67272889]
[1730300819439,3.68665,2712.5,2712.2,1.67272889]
[1730300819653,3.68665,2712.5,2712.3,0.08080362]
[1730300819838,3.68665,2712.5,2712.2,0.4735]
[1730300820036,0.7875,2712.8,2712.0,0.4735]
[1730300820037,3.68636,2712.7,2712.0,0.4735]
[1730300820269,3.68697,2712.3,2712.0,0.4735]
[1730300820569,3.68705,2712.2,2711.8,0.74875999]
[1730300820775,3.68697,2712.3,2711.6,0.918422]
[1730300820776,0.8316,2712.3,2711.6,0.918422]
[1730300820935,0.8316,2712.3,2711.5,3.68789]
[1730300820936,3.68728,2712.1,2711.5,0.4735]
[1730300821140,0.8316,2712.3,2711.5,0.4735]
[1730300821356,3.68725,2712.1,2711.6,3.68783]
[1730300821562,3.68737,2712.0,2711.5,4.43675465]
[1730300821748,3.68745,2711.9,2711.5,0.74877465]
[1730300822072,3.68765,2711.8,2711.3,0.74877465]
[1730300822274,3.68765,2711.8,2711.2,3.68826]
[1730300822275,3.68813,2711.4,2711.2,0.27527465]
[1730300822463,3.68827,2711.3,2710.9,0.27527465]
[1730300822660,3.6885,2711.2,2710.8,0.4735]
[1730300823040,4.45026,2711.5,2710.9,3.68869]
[1730300823241,3.68849,2711.2,2710.8,0.4735]
[1730300823441,3.68813,2711.4,2710.8,0.4735]
[1730300823636,3.68855,2711.1,2710.8,0.4735]
[1730300823842,3.68837,2711.3,2710.5,8.24026559]
[1730300824158,3.68837,2711.3,2710.6,3.96444508]
[1730300824357,3.68872,2711.0,2710.6,0.27531508]
[1730300824676,4.45024,2711.5,2710.6,0.27531508]
[1730300824880,3.68843,2711.2,2710.6,3.96440508]
[1730300825190,3.68843,2711.2,2710.6,4.82332591]
[1730300825368,3.68813,2711.4,2710.6,0.85892083]
[1730300825541,3.68864,2711.1,2710.5,8.24027559]
[1730300825742,3.68864,2711.1,2710.6,3.96443525]
[1730300825943,3.68834,2711.3,2710.8,0.55]
[1730300826275,3.68841,2711.2,2710.8,0.55]
[1730300826452,3.68841,2711.2,2710.7,4.23897]
[1730300826648,3.68841,2711.2,2710.8,0.792809]
[1730300826957,3.68822,2711.4,2711.0,0.4735]
[1730300827353,7.37585,2711.6,2711.0,4.16206]
[1730300827553,0.7964,2711.8,2711.0,0.4735]
[1730300827881,7.37591,2711.6,2711.0,0.4735]
[1730300828182,7.37591,2711.6,2711.0,5.00762512]
[1730300828410,3.68801,2711.5,2711.0,5.00762512]
[1730300828967,0.7964,2711.8,2711.0,5.00768512]
[1730300829183,3.68781,2711.7,2711.2,3.68839]
[1730300829384,4.48405,2711.8,2711.1,3.68851]
[1730300829593,4.48405,2711.8,2711.2,0.50075351]
[1730300829810,3.68765,2711.8,2711.1,4.23843]
[1730300830012,3.68788,2711.6,2711.1,4.23843]
[1730300830412,3.68765,2711.8,2711.2,3.68836]
[1730300830617,3.68775,2711.7,2711.2,7.37667]
[1730300830820,7.37534,2711.8,2711.2,3.68831]
[1730300831113,3.68772,2711.7,2711.3,0.423831]
[1730300831463,3.68809,2711.5,2711.1,0.55]
[1730300831664,7.37665,2711.3,2711.2,0.07397002]
[1730300831859,3.68829,2711.3,2711.0,0.4735]
[1730300832107,3.6882,2711.4,2711.1,0.07401616]
[1730300832491,3.6884,2711.2,2711.1,0.07401616]
[1730300833004,0.8262,2711.5,2710.8,0.55]
[1730300833213,3.6884,2711.2,2711.1,0.07401616]
[1730300833368,3.68881,2710.9,2710.4,4.16298]
[1730300833786,3.68881,2710.9,2710.5,0.07431384]
[1730300833973,3.68882,2710.9,2710.5,0.07431384]
[1730300835119,3.68857,2711.1,2710.5,0.07431384]
[1730300835709,3.68881,2710.9,2710.5,3.76363384]
[1730300835860,3.68896,2710.8,2710.5,0.07431384]
[1730300836074,3.68911,2710.7,2710.5,0.07431384]
[1730300836274,3.68881,2710.9,2710.5,0.07431384]
[1730300836575,3.68903,2710.8,2710.5,0.07431384]
[1730300836775,3.68881,2710.9,2710.5,0.07431384]
[1730300836997,0.8191,2711.0,2710.5,3.76365384]
[1730300837215,7.37781,2710.9,2710.5,0.07431384]
[1730300837408,3.68898,2710.8,2710.5,0.07431384]
[1730300837612,3.68887,2710.9,2710.5,0.07431384]
[1730300837801,3.68897,2710.8,2710.5,0.07431384]
[1730300839097,3.68881,2710.9,2710.5,0.07431384]
[1730300839436,3.68895,2710.8,2710.5,0.07431384]
[1730300840220,3.68882,2710.9,2710.5,3.76366384]
[1730300840610,3.68882,2710.9,2710.5,0.07431384]
[1730300840817,3.68882,2710.9,2710.5,3.76364384]
[1730300840988,3.68882,2710.9,2710.6,0.42371438]
[1730300841183,0.451407,2711.4,2710.6,0.42371438]
[1730300841184,3.68813,2711.4,2710.9,3.68879]
[1730300841389,0.7759,2711.6,2711.1,3.68853]
[1730300841630,0.7759,2711.6,2711.2,3.68839]
[1730300841925,3.68806,2711.5,2711.2,0.07423412]
[1730300842107,0.7759,2711.6,2711.2,0.07423412]
[1730300842281,3.68814,2711.4,2710.9,3.6888]
[1730300842483,3.68814,2711.4,2711.0,0.62432641]
[1730300843130,3.68812,2711.5,2711.1,3.68853]
[1730300843131,3.688,2711.5,2711.1,3.68853]
[1730300843284,3.68813,2711.4,2711.0,0.07432641]
[1730300843489,3.68828,2711.3,2711.0,0.07432641]
[1730300843725,3.68813,2711.4,2711.0,3.76298641]
[1730300843920,3.688,2711.5,2711.0,7.82785505]
[1730300844230,3.688,2711.5,2711.1,4.16201]
[1730300844590,3.688,2711.5,2711.2,0.07423412]
[1730300844790,3.688,2711.5,2711.2,0.44333412]
[1730300845096,3.688,2711.5,2711.2,0.07423412]
[1730300845291,3.68788,2711.6,2711.2,0.5355034]
[1730300845487,3.68788,2711.6,2711.2,3.76261412]
[1730300846936,3.68802,2711.5,2711.2,0.07423412]
[1730300847248,3.68772,2711.7,2711.2,3.76253412]
[1730300847423,3.68786,2711.6,2711.2,3.76253412]
[1730300848945,3.68765,2711.8,2711.3,3.68819]
[1730300849240,3.68765,2711.8,2711.2,3.76250412]
[1730300849428,3.68765,2711.8,2711.4,0.07407204]
[1730300849630,3.68765,2711.8,2711.3,4.18596859]
[1730300849805,3.68765,2711.8,2711.5,0.07402591]
[1730300850002,3.68765,2711.8,2711.4,0.07407204]
[1730300850206,3.68765,2711.8,2711.6,0.07397978]
[1730300850439,3.68765,2711.8,2711.5,0.07402591]
[1730300850744,3.68765,2711.8,2711.6,0.07397978]
[1730300850745,3.68772,2711.7,2711.6,0.07397978]
[1730300851167,3.68765,2711.8,2711.2,3.68831]
[1730300851370,3.68772,2711.7,2711.6,0.07397978]
[1730300851543,3.68772,2711.7,2711.2,0.55]
[1730300851729,3.68772,2711.7,2711.6,0.07397978]
[1730300851928,3.68758,2711.8,2711.4,3.68812]
[1730300852150,3.8133,2711.9,2711.6,0.07397978]
[1730300852151,4.50075,2711.9,2711.6,0.07397978]
[1730300852463,4.50075,2711.9,2711.5,0.07402591]
[1730300852464,3.6876,2711.8,2711.5,0.07402591]
[1730300852767,3.68772,2711.7,2711.6,0.07397978]
[1730300853153,3.688,2711.5,2711.2,0.55]
[1730300853531,3.688,2711.5,2711.3,0.07401631]
[1730300853732,3.68786,2711.6,2711.3,0.07401631]
[1730300853933,3.68772,2711.7,2711.2,0.55]
[1730300854165,3.68801,2711.5,2711.4,0.07397017]
[1730300854656,3.68801,2711.5,2711.1,0.4735]
[1730300854855,3.68801,2711.5,2711.2,0.07406245]
[1730300855052,3.68805,2711.5,2711.2,0.07406245]
[1730300855239,3.68815,2711.4,2711.2,0.07406245]
[1730300855430,3.68805,2711.5,2711.2,0.07406245]
[1730300855829,3.6878,2711.7,2711.2,3.76243245]
[1730300856066,3.68764,2711.8,2711.3,4.05009216]
[1730300856238,3.68782,2711.7,2711.4,0.07397017]
[1730300856445,3.68759,2711.8,2711.4,0.07397017]
[1730300857634,3.68,2712.0,2711.4,0.07397017]
[1730300857950,3.68786,2711.6,2711.2,3.68832]
[1730300858167,3.68786,2711.6,2711.1,4.16202]
[1730300858366,3.68786,2711.6,2711.3,0.07399179]
[1730300858564,3.68786,2711.6,2711.2,0.07403793]
[1730300858767,3.68768,2711.8,2711.4,0.07394565]
[1730300858971,7.36741,2712.0,2711.5,3.68791]
[1730300859282,3.68751,2711.9,2711.5,0.54739952]
[1730300859782,3.68751,2711.9,2711.5,4.23536952]
[1730300859994,3.68751,2711.9,2711.5,0.54739952]
[1730300860193,3.6878,2711.7,2711.5,0.07389952]
[1730300860543,3.6878,2711.7,2711.3,4.16175]
[1730300860859,3.6878,2711.7,2711.3,0.4735]
[1730300861089,3.6878,2711.7,2711.4,0.07394565]
[1730300861914,3.68786,2711.6,2711.4,0.07394565]
[1730300862720,7.37555,2711.7,2711.4,0.07394565]
[1730300863022,3.68773,2711.7,2711.4,0.07394565]
[1730300863174,3.68,2712.0,2711.4,0.07394565]
[1730300863525,3.68787,2711.6,2711.4,0.07394565]
[1730300863821,3.6878,2711.7,2711.4,0.07394565]
[1730300864521,7.36741,2712.0,2711.4,0.07394565]
[1730300864815,3.68,2712.0,2711.5,0.62375782]
[1730300865028,0.7602,2712.4,2712.2,3.68704]
[1730300865317,3.68553,2713.4,2712.3,0.07349284]
[1730300865318,3.68642,2712.7,2712.3,0.07349284]
[1730300865817,3.68642,2712.7,2712.2,0.74873781]
[1730300865818,3.68675,2712.5,2712.2,0.74873781]
[1730300866013,3.68675,2712.5,2712.4,0.07344674]
[1730300866187,4.45891,2712.6,2712.3,0.07349284]
[1730300866390,3.68677,2712.4,2712.2,0.4735]
[1730300866717,3.68677,2712.4,2712.0,0.74873781]
[1730300866880,7.37366,2712.4,2712.0,0.74873781]
[1730300867079,3.68677,2712.4,2712.0,0.74873781]
[1730300867375,3.68677,2712.4,2712.0,1.91111281]
[1730300867611,3.68697,2712.3,2712.0,0.74873781]
[1730300867808,3.68697,2712.3,2712.0,0.4735]
[1730300868630,3.68689,2712.4,2712.0,0.4735]
[1730300868811,3.68697,2712.3,2712.0,0.4735]
[1730300869013,3.68705,2712.2,2711.9,0.55]
[1730300869220,3.68705,2712.2,2711.9,0.27523781]
[1730300869415,3.68718,2712.1,2711.9,0.27523781]
[1730300869718,0.445929,2712.4,2711.8,0.4735]
[1730300869874,3.68738,2712.0,2711.5,4.43702333]
[1730300870079,3.68712,2712.2,2711.7,3.68772]
[1730300870278,3.68712,2712.2,2711.7,3.96327333]
[1730300870716,3.6872,2712.1,2711.7,0.27555333]
[1730300870884,3.68742,2712.0,2711.6,0.55]
[1730300871092,3.68718,2712.1,2711.6,0.82555333]
[1730300871288,3.68718,2712.1,2711.6,4.58709241]
[1730300871485,3.68718,2712.1,2711.7,3.68769]
[1730300871782,3.68732,2712.0,2711.6,4.58715241]
[1730300872014,3.68732,2712.0,2711.6,0.89930241]
[1730300872525,3.68718,2712.1,2711.7,3.68772]
[1730300872720,3.68699,2712.3,2711.7,3.96327333]
[1730300872900,3.68705,2712.2,2711.7,3.96327333]
[1730300873107,0.7724,2712.6,2712.0,0.55]
[1730300873108,3.68673,2712.5,2712.0,0.55]
[1730300873275,3.68673,2712.5,2712.0,4.2373]
[1730300873628,3.68673,2712.5,2712.1,3.68715]
[1730300873834,3.68673,2712.5,2712.0,4.23723]
[1730300874037,3.68673,2712.5,2712.0,5.05838222]
[1730300874506,3.68673,2712.5,2712.0,5.05832222]
[1730300875029,4.45891,2712.6,2712.1,3.68711]
[1730300876628,0.7791,2712.4,2711.6,0.4735]
[1730300876827,3.68742,2712.0,2711.6,0.4735]
[1730300877034,3.68731,2712.0,2711.6,0.4735]
[1730300877236,3.68772,2711.7,2711.5,0.27533236]
[1730300877443,3.68772,2711.7,2711.3,0.74883236]
[1730300877652,3.6876,2711.8,2711.3,0.74885281]
[1730300877807,3.6876,2711.8,2711.3,5.23083131]
[1730300878151,3.6876,2711.8,2711.4,0.55]
[1730300878356,3.68771,2711.8,2711.3,4.16174]
[1730300878654,3.68771,2711.8,2711.3,4.51086123]
[1730300878805,3.68774,2711.7,2711.3,1.99255057]
[1730300879350,3.68774,2711.7,2711.3,5.68079057]
[1730300879509,3.6876,2711.8,2711.3,5.40542527]
[1730300879921,3.68745,2711.9,2711.4,5.49746374]
[1730300880231,3.68769,2711.8,2711.4,1.80938374]
[1730300880438,3.68769,2711.8,2711.4,1.88313751]
[1730300880752,3.68758,2711.8,2711.4,1.80938374]
[1730300880903,3.68765,2711.8,2711.3,0.74888889]
[1730300881107,3.68797,2711.6,2711.3,0.4735]
[1730300881308,3.68797,2711.6,2711.3,0.74889498]
[1730300881565,3.68774,2711.7,2711.3,0.74889498]
[1730300881717,3.68774,2711.7,2711.3,4.43712498]
[1730300881916,4.4536,2712.0,2711.4,3.68812]
[1730300882119,3.6876,2711.8,2711.4,3.68812]
[1730300882338,3.68698,2712.3,2711.8,3.68751]
[1730300882539,3.68657,2712.6,2712.1,4.23716]
[1730300882755,7.3732,2712.6,2712.2,0.423716]
[1730300883055,7.3732,2712.6,2712.2,0.4735]
[1730300883056,3.68651,2712.6,2712.2,0.4735]
[1730300883557,3.68663,2712.5,2712.2,0.4735]
[1730300883774,3.68683,2712.4,2712.0,1.0235]
[1730300884058,3.68674,2712.5,2712.0,1.0235]
[1730300884251,3.68702,2712.3,2712.0,1.0235]
[1730300884930,3.68698,2712.3,2711.8,7.84856]
[1730300885136,3.68671,2712.5,2712.0,0.55]
[1730300885337,3.68671,2712.5,2712.1,3.68716]
[1730300885537,3.68679,2712.4,2712.0,0.62374371]
[1730300885878,3.68671,2712.5,2712.1,3.68715]
[1730300886033,7.37344,2712.5,2712.0,4.31092752]
[1730300886233,3.68671,2712.5,2712.0,7.92443]
[1730300886463,3.68671,2712.5,2712.0,5.076983]
[1730300886662,3.68671,2712.5,2712.0,8.764213]
[1730300886844,3.68671,2712.5,2712.0,5.076983]
[1730300887152,3.68671,2712.5,2712.0,1.389793]
[1730300887477,3.68692,2712.3,2711.9,0.62373755]
[1730300887676,7.37392,2712.3,2711.9,0.62373755]
[1730300887876,3.68692,2712.3,2711.9,0.62373755]
[1730300888272,3.68708,2712.2,2711.9,0.62373755]
[1730300888663,3.68687,2712.4,2711.9,0.62373755]
[1730300888866,3.68687,2712.4,2711.9,4.31111755]
[1730300889152,0.7703,2712.7,2711.3,1.16256071]
[1730300889153,3.68767,2711.8,2711.3,1.16256071]
[1730300889366,0.8183,2711.7,2711.3,3.68826]
[1730300889738,3.68786,2711.6,2711.1,3.50009216]
[1730300889957,3.68786,2711.6,2711.1,7.18856216]
[1730300890136,3.68786,2711.6,2711.1,8.32362538]
[1730300890339,0.8183,2711.7,2711.3,3.68825]
[1730300890575,0.8183,2711.7,2711.1,12.01205538]
[1730300890740,4.50608,2711.7,2711.1,8.32358538]
[1730300890945,4.50608,2711.7,2711.1,12.01202538]
[1730300890946,3.68789,2711.6,2711.1,12.01202538]
[1730300891455,3.68789,2711.6,2711.2,0.55]
[1730300891842,4.5061,2711.7,2711.3,0.0667788]
[1730300892089,3.68786,2711.6,2711.3,0.0667788]
[1730300892248,3.68802,2711.5,2711.2,0.55]
[1730300892470,4.5061,2711.7,2711.4,0.06673267]
[1730300892668,4.5061,2711.7,2711.3,0.0667788]
[1730300892889,3.6878,2711.7,2711.5,0.06668653]
[1730300893412,3.6878,2711.7,2711.6,0.06667624]
[1730300893613,3.6878,2711.7,2711.2,4.23833]
[1730300893768,3.6878,2711.7,2711.6,0.06667624]
[1730300893973,3.6878,2711.7,2711.2,0.55]
[1730300893974,3.68791,2711.6,2711.2,0.55]
[1730300894218,3.68772,2711.8,2711.6,0.06667624]
[1730300894386,3.68772,2711.7,2711.6,0.06667624]
[1730300894586,3.68772,2711.7,2711.2,4.23832]
[1730300894811,3.68789,2711.6,2711.2,4.23832]
[1730300895325,3.68789,2711.6,2711.2,0.55]
[1730300896497,7.37538,2711.8,2711.2,4.23839]
[1730300896819,3.68772,2711.7,2711.2,4.23834]
[1730300897124,3.68772,2711.7,2711.2,5.42839122]
[1730300898225,3.68772,2711.7,2711.2,9.11672122]
[1730300898425,3.68692,2712.3,2711.9,1.0235]
[1730300898732,3.68711,2712.2,2711.9,1.0235]
[1730300899829,3.68686,2712.4,2711.9,1.0235]
[1730300900032,4.48582,2712.6,2711.9,1.0235]
[1730300900234,3.68739,2712.0,2711.6,0.4735]
[1730300900394,3.68739,2712.0,2711.4,3.50009216]
[1730300900395,0.7658,2712.0,2711.4,3.50009216]
[1730300900593,4.45321,2712.0,2711.4,0.45526488]
[1730300900790,4.45321,2712.0,2711.3,4.1617]
[1730300901130,3.68765,2711.8,2711.3,4.1617]
[1730300901315,3.68765,2711.8,2711.4,3.76185491]
[1730300901521,4.45321,2712.0,2711.5,3.68799]
[1730300901835,3.68681,2712.4,2711.8,0.55]
[1730300901836,3.6871,2712.2,2711.8,0.55]